[Event "44th Chess Olympiad Women 2022"]
[Site "Chennai"]
[Date "2022.08.07"]
[Round "9.12"]
[White "Petrova, Kristyna"]
[Black "Arribas Robaina, Maritza"]
[Result "1/2-1/2"]
[WhiteElo "2238"]
[BlackElo "2239"]
[Annotator "RC"]
[PlyCount "74"]
[EventDate "2022.??.??"]
[TimeControl "60"]

1. Nf3 {[%emt 0:00:04]} d5 {[%emt 0:00:13]} 2. c4 {[%emt 0:00:08]} e6 {[%emt 0:
00:00]} 3. e3 {[%emt 0:00:12]} Nf6 {[%emt 0:00:10]} 4. Nc3 {[%emt 0:00:12]} Be7
{[%emt 0:00:11]} 5. b3 {[%emt 0:02:28]} O-O {[%emt 0:00:48]} 6. Bb2 {[%emt 0:
00:00]} b6 {[%emt 0:01:19]} 7. cxd5 {[%emt 0:09:36]} exd5 {[%emt 0:00:14]} 8.
Be2 {[%emt 0:00:51]} Bb7 {[%emt 0:03:33]} 9. O-O {[%emt 0:00:53]} Nbd7 {
[%emt 0:01:18]} 10. Rc1 {[%emt 0:01:40]} Re8 {[%emt 0:02:52]} 11. Nb5 {[%emt 0:
00:00]} c5 {[%emt 0:01:59]} 12. d4 {[%emt 0:00:14]} a6 {[%emt 0:00:39]} 13. Nc3
{[%emt 0:00:45]} Bd6 {[%emt 0:01:55]} 14. Rc2 {[%emt 0:08:19]} Qe7 {[%emt 0:00:
00]} 15. Re1 {[%emt 0:13:15]} Rad8 {[%emt 0:03:06]} 16. g3 {[%emt 0:05:38]} Ne4
{[%emt 0:09:53]} 17. Bf1 {[%emt 0:02:12]} Nxc3 {[%emt 0:03:03]} 18. Bxc3 {
[%emt 0:02:38]} Nf6 {[%emt 0:01:03]} 19. Bg2 {[%emt 0:01:04]} c4 {[%emt 0:00:
00]} 20. Nd2 {[%emt 0:12:50]} cxb3 {[%emt 0:07:16]} 21. Nxb3 {[%emt 0:00:00]}
Rc8 {[%emt 0:01:24]} 22. Bb2 {[%emt 0:01:15]} Rxc2 {[%emt 0:02:58]} 23. Qxc2 {
[%emt 0:00:01]} Qd7 {[%emt 0:03:26]} 24. Rc1 {[%emt 0:05:17]} Rc8 {[%emt 0:00:
00]} 25. Qb1 {[%emt 0:04:12]} Rxc1+ {[%emt 0:01:27]} 26. Nxc1 {[%emt 0:00:46]}
Qc6 {[%emt 0:09:56]} 27. Nd3 {[%emt 0:02:00]} Ne4 {[%emt 0:07:58]} 28. Ne5 {
[%emt 0:03:38]} Qc7 {[%emt 0:01:37]} 29. Qd1 {[%emt 0:05:04]} h6 {[%emt 0:00:
00]} 30. f3 {[%emt 0:04:23]} Nc3 {[%emt 0:04:08]} 31. Qb3 {[%emt 0:01:31]} Ne2+
{[%emt 0:00:37]} 32. Kf2 {[%emt 0:00:47]} Nc1 {[%emt 0:00:02]} 33. Bxc1 {
[%emt 0:01:17]} Qxc1 {[%emt 0:00:05]} 34. Bf1 {[%emt 0:00:28]} b5 {[%emt 0:00:
00]} 35. Nd3 {[%emt 0:01:22]} Qd2+ {[%emt 0:00:36]} 36. Be2 {[%emt 0:00:01]}
Bc6 {[%emt 0:00:43]} 37. Qb2 {[%emt 0:01:59]} Qxb2 {[%emt 0:01:01]} 1/2-1/2

[Event "44th Chess Olympiad Women 2022"]
[Site "Chennai"]
[Date "2022.08.07"]
[Round "9.12"]
[White "Worek, Joanna"]
[Black "Ordaz Valdes, Lisandra Teresa"]
[Result "0-1"]
[WhiteElo "2280"]
[BlackElo "2367"]
[Annotator "RC"]
[PlyCount "50"]
[EventDate "2022.??.??"]
[TimeControl "60"]

1. e4 {[%emt 0:00:01]} e5 {[%emt 0:00:06]} 2. Nf3 {[%emt 0:00:04]} Nc6 {
[%emt 0:00:05]} 3. d4 {[%emt 0:00:21]} exd4 {[%emt 0:00:07]} 4. Nxd4 {[%emt 0:
00:00]} Qf6 {[%emt 0:00:08]} 5. Nf3 {[%emt 0:00:19]} Bb4+ {[%emt 0:08:39]} 6.
c3 {[%emt 0:00:05]} Bc5 {[%emt 0:00:38]} 7. Be2 {[%emt 0:05:10]} Nge7 {[%emt 0:
00:00]} 8. O-O {[%emt 0:02:26]} h6 {[%emt 0:04:28]} 9. a3 {[%emt 0:08:14]} a5 {
[%emt 0:06:31]} 10. c4 {[%emt 0:00:57]} d6 {[%emt 0:03:02]} 11. Nc3 {[%emt 0:
00:00]} O-O {[%emt 0:03:29]} 12. Rb1 {[%emt 0:16:25]} Bg4 {[%emt 0:14:29]} 13.
Nb5 {[%emt 0:12:51]} Bb6 {[%emt 0:10:08]} 14. Ne1 {[%emt 0:08:41]} Be6 {
[%emt 0:02:46]} 15. b3 {[%emt 0:12:08]} Qg6 {[%emt 0:03:29]} 16. Bf3 {[%emt 0:
00:00]} Ne5 {[%emt 0:07:09]} 17. Nd3 {[%emt 0:03:15]} Nxf3+ {[%emt 0:01:57]}
18. Qxf3 {[%emt 0:00:01]} Bg4 {[%emt 0:00:10]} 19. Qf4 {[%emt 0:00:34]} Be2 {
[%emt 0:01:31]} 20. Ne1 {[%emt 0:00:07]} Bxf1 {[%emt 0:04:13]} 21. Kxf1 {
[%emt 0:00:02]} Nc6 {[%emt 0:00:17]} 22. Nf3 {[%emt 0:00:22]} Rae8 {[%emt 0:00:
00]} 23. Nc3 {[%emt 0:00:26]} f5 {[%emt 0:02:04]} 24. Nh4 {[%emt 0:02:37]} Qf6
{[%emt 0:00:23]} 25. Nd5 {[%emt 0:01:05]} Qd4 {[%emt 0:00:16]} 0-1

[Event "44th Chess Olympiad Women 2022"]
[Site "Chennai"]
[Date "2022.08.07"]
[Round "9.13"]
[White "Nandhidhaa, P V.."]
[Black "Olde, Margareth"]
[Result "1-0"]
[WhiteElo "2312"]
[BlackElo "2235"]
[Annotator "RC"]
[PlyCount "91"]
[EventDate "2022.??.??"]
[TimeControl "60"]

1. e4 {[%emt 0:00:28]} e5 {[%emt 0:00:07]} 2. Nf3 {[%emt 0:00:15]} Nc6 {
[%emt 0:00:07]} 3. Bb5 {[%emt 0:00:13]} a6 {[%emt 0:00:14]} 4. Ba4 {[%emt 0:00:
00]} Nf6 {[%emt 0:00:25]} 5. d3 {[%emt 0:00:09]} d6 {[%emt 0:00:43]} 6. c3 {
[%emt 0:00:10]} Be7 {[%emt 0:00:42]} 7. O-O {[%emt 0:00:25]} O-O {[%emt 0:00:
00]} 8. Re1 {[%emt 0:05:47]} b5 {[%emt 0:01:01]} 9. Bc2 {[%emt 0:00:07]} d5 {
[%emt 0:02:22]} 10. Nbd2 {[%emt 0:00:29]} dxe4 {[%emt 0:10:08]} 11. dxe4 {
[%emt 0:00:28]} h6 {[%emt 0:01:49]} 12. a4 {[%emt 0:02:43]} Rb8 {[%emt 0:04:21]
} 13. axb5 {[%emt 0:05:23]} axb5 {[%emt 0:00:07]} 14. Qe2 {[%emt 0:03:23]} Bc5
{[%emt 0:07:30]} 15. b4 {[%emt 0:09:40]} Bb6 {[%emt 0:05:18]} 16. Bd3 {[%emt 0:
00:00]} Bd7 {[%emt 0:17:19]} 17. Nb3 {[%emt 0:12:21]} Qe7 {[%emt 0:27:17]} 18.
Be3 {[%emt 0:10:06]} Bxe3 {[%emt 0:01:14]} 19. Qxe3 {[%emt 0:00:53]} Nh5 {
[%emt 0:03:50]} 20. Nc5 {[%emt 0:06:59]} Bc8 {[%emt 0:02:09]} 21. g3 {[%emt 0:
00:00]} Rb6 {[%emt 0:04:09]} 22. Be2 {[%emt 0:03:00]} Kh7 {[%emt 0:04:03]} 23.
Red1 {[%emt 0:05:38]} Nf6 {[%emt 0:01:19]} 24. Nh4 {[%emt 0:01:05]} g6 {
[%emt 0:00:22]} 25. Bf1 {[%emt 0:09:28]} Ne8 {[%emt 0:01:50]} 26. Qe1 {[%emt 0:
00:00]} Nd6 {[%emt 0:00:34]} 27. Ng2 {[%emt 0:00:36]} Nb7 {[%emt 0:03:22]} 28.
Ne3 {[%emt 0:01:49]} Be6 {[%emt 0:00:09]} 29. Nd3 {[%emt 0:07:24]} Re8 {
[%emt 0:00:50]} 30. Rd2 {[%emt 0:01:15]} Nd6 {[%emt 0:00:24]} 31. Nc5 {[%emt 0:
00:00]} Nb7 {[%emt 0:00:28]} 32. Nd5 {[%emt 0:02:10]} Bxd5 {[%emt 0:00:07]} 33.
Rxd5 {[%emt 0:00:20]} Nb8 {[%emt 0:00:50]} 34. Ra7 {[%emt 0:02:49]} c6 {
[%emt 0:00:30]} 35. Rd2 {[%emt 0:00:21]} Rc8 {[%emt 0:00:08]} 36. Qe3 {[%emt 0:
00:00]} Rc7 {[%emt 0:01:17]} 37. Ne6 {[%emt 0:01:04]} Qxe6 {[%emt 0:00:17]} 38.
Qxb6 {[%emt 0:00:04]} Qc8 {[%emt 0:00:09]} 39. Ra8 {[%emt 0:01:05]} c5 {
[%emt 0:00:19]} 40. Qa7 {[%emt 0:01:22]} cxb4 {[%emt 0:00:03]} 41. Rxb8 {
[%emt 0:01:48]} Qe6 {[%emt 0:03:35]} 42. Rxb7 {[%emt 0:01:18]} Rxb7 {[%emt 0:
00:00]} 43. Qxb7 {[%emt 0:00:04]} bxc3 {[%emt 0:00:34]} 44. Rd7 {[%emt 0:00:30]
} c2 {[%emt 0:00:00]} 45. Rxf7+ {[%emt 0:00:10]} Kg8 {[%emt 0:00:00]} 46. Rc7 {
[%emt 0:00:21]} 1-0

[Event "44th Chess Olympiad Women 2022"]
[Site "Chennai"]
[Date "2022.08.07"]
[Round "9.13"]
[White "Narva, Mai"]
[Black "Karavade, Eesha"]
[Result "1/2-1/2"]
[WhiteElo "2385"]
[BlackElo "2339"]
[Annotator "TA"]
[PlyCount "74"]
[EventDate "2022.??.??"]
[TimeControl "60"]

{[%evp 12,74,0,0,0,-4,0,0,0,0,0,0,18,14,19,0,7,0,-5,-13,22,-6,-9,-13,-6,-4,-6,
-18,-12,-20,-23,-14,0,0,0,0,0,0,0,0,2,0,0,0,0,0,0,0,0,0,0,0,0,0,0,0,0,0,0,0,0,
0,0,0,0]} 1. e4 {[%emt 0:00:04]} e5 {[%emt 0:00:34]} 2. Nf3 {[%emt 0:00:14]}
Nc6 {[%emt 0:00:06]} 3. Nc3 {[%emt 0:00:21]} Nf6 {[%emt 0:00:25]} 4. Bb5 {
[%emt 0:00:26]} Nd4 {[%emt 0:05:05]} 5. Bc4 {[%emt 0:00:37]} Bc5 {[%emt 0:00:
00]} 6. d3 {[%emt 0:00:35]} d6 {[%emt 0:01:50]} 7. Nxd4 {[%emt 0:00:36]} Bxd4 {
[%emt 0:00:10] C48: Four Knights: 4 Bb5, replies other than 4...Bb4.} 8. Qf3 {
[%emt 0:01:05]} h6 {[%emt 0:07:11]} 9. Qg3 {[%emt 0:02:00]} Nh5 {[%emt 0:01:29]
} 10. Qf3 {[%emt 0:00:19][%csl Gc4,Yf7,Yh5][%cal Rf3f7] [#]} Nf6 {[%emt 0:00:
00]} 11. h3 {[%emt 0:00:16] [#]} Be6 $146 {[%emt 0:04:10]} ({Predecessor:} 
11... Qe7 12. Ne2 Bb6 13. Ng3 c6 14. O-O g6 15. c3 Be6 16. Bb3 Nd7 17. Be3 h5
18. d4 Bxb3 19. axb3 Kf8 {1-0 (36) Artemiev,V (2706)-Oparin,G (2624) Sochi 2018
}) 12. Ne2 {[%emt 0:13:05]} Bb6 {[%emt 0:00:58]} 13. Bd2 {[%emt 0:09:03]} Qd7 {
[%emt 0:10:37]} 14. Ng3 {[%emt 0:06:06]} d5 {[%emt 0:06:36]} 15. Bb3 {[%emt 0:
00:00]} a5 {[%emt 0:07:15]} 16. exd5 {[%emt 0:14:22]} Bxd5 {[%emt 0:00:52]} 17.
Bxd5 {[%emt 0:12:32]} Qxd5 {[%emt 0:00:14]} 18. Ne4 {[%emt 0:09:19]} Nxe4 {
[%emt 0:03:12]} 19. dxe4 {[%emt 0:00:47]} Qc4 {[%emt 0:04:35]} 20. Bc3 {
[%emt 0:09:38]} Bd4 {[%emt 0:05:31]} 21. Bxd4 {[%emt 0:01:29]} Qxd4 {[%emt 0:
00:00] The position is equal.} 22. c3 {[%emt 0:02:12]} Qc4 {[%emt 0:02:56]} 23.
Qe2 {[%emt 0:03:50]} Qxe2+ {[%emt 0:00:12]} 24. Kxe2 $11 {[%emt 0:00:05]
Endgame KRR-KRR} O-O-O {[%emt 0:00:08]} 25. Rad1 {[%emt 0:02:05]} h5 {[%emt 0:
00:19]} 26. Ke3 {[%emt 0:01:31]} c6 {[%emt 0:01:38]} 27. c4 {[%emt 0:00:00]} b6
{[%emt 0:00:08]} 28. h4 {[%emt 0:00:35]} Kc7 {[%emt 0:00:44]} 29. b3 {[%emt 0:
00:28]} g6 {[%emt 0:01:20]} 30. g3 {[%emt 0:00:43]} Rxd1 {[%emt 0:00:00]} 31.
Rxd1 {[%emt 0:00:07]} Rd8 {[%emt 0:00:19]} 32. Rxd8 {[%emt 0:00:53]} Kxd8 {
[%emt 0:00:02] KP-KP} 33. f3 {[%emt 0:00:36]} Ke7 {[%emt 0:01:07]} 34. a3 {
[%emt 0:00:24]} Ke6 {[%emt 0:01:12]} 35. b4 {[%emt 0:00:30]} a4 {[%emt 0:00:00]
} 36. c5 {[%emt 0:00:32]} b5 {[%emt 0:00:05]} 37. Kd3 {[%emt 0:00:26]} f6 {
[%emt 0:00:18] An uneventful encounter. Weighted Error Value: White=0.02 
(flawless) /Black=0.03 (flawless)} 1/2-1/2

[Event "44th Chess Olympiad Women 2022"]
[Site "Chennai"]
[Date "2022.08.07"]
[Round "9.13"]
[White "Sinitsina, Anastassia"]
[Black "Sahithi Varshini M"]
[Result "0-1"]
[WhiteElo "2175"]
[BlackElo "2312"]
[Annotator "RC"]
[PlyCount "118"]
[EventDate "2022.??.??"]
[TimeControl "60"]

1. Nf3 {[%emt 0:00:54]} Nf6 {[%emt 0:01:01]} 2. g3 {[%emt 0:00:10]} d5 {
[%emt 0:01:26]} 3. Bg2 {[%emt 0:00:08]} c6 {[%emt 0:01:52]} 4. O-O {[%emt 0:00:
00]} Bg4 {[%emt 0:00:46]} 5. d3 {[%emt 0:01:03]} Nbd7 {[%emt 0:03:57]} 6. Nbd2
{[%emt 0:00:39]} g6 {[%emt 0:06:06]} 7. h3 {[%emt 0:07:15]} Bxf3 {[%emt 0:00:
00]} 8. Nxf3 {[%emt 0:01:00]} Bg7 {[%emt 0:00:35]} 9. c3 {[%emt 0:01:36]} O-O {
[%emt 0:10:01]} 10. Qc2 {[%emt 0:03:41]} e6 {[%emt 0:03:15]} 11. e4 {[%emt 0:
00:00]} Qb6 {[%emt 0:07:43]} 12. Re1 {[%emt 0:10:23]} c5 {[%emt 0:05:02]} 13.
exd5 {[%emt 0:02:47]} Nxd5 {[%emt 0:04:27]} 14. Nd2 {[%emt 0:01:07]} Qa6 {
[%emt 0:04:24]} 15. Nc4 {[%emt 0:01:51]} b5 {[%emt 0:05:17]} 16. Ne3 {[%emt 0:
00:00]} N7b6 {[%emt 0:08:43]} 17. a4 {[%emt 0:12:55]} bxa4 {[%emt 0:10:24]} 18.
Nc4 {[%emt 0:03:34]} Rab8 {[%emt 0:10:56]} 19. Ne5 {[%emt 0:05:41]} Qc8 {
[%emt 0:01:32]} 20. h4 {[%emt 0:00:57]} Qc7 {[%emt 0:02:00]} 21. Nf3 {[%emt 0:
00:00]} h5 {[%emt 0:02:52]} 22. Ng5 {[%emt 0:05:04]} Rbe8 {[%emt 0:01:44]} 23.
Qe2 {[%emt 0:04:04]} Qd7 {[%emt 0:00:50]} 24. Ne4 {[%emt 0:00:56]} Rc8 {
[%emt 0:00:24]} 25. Bh3 {[%emt 0:01:58]} f5 {[%emt 0:01:01]} 26. Ng5 {[%emt 0:
00:00]} e5 {[%emt 0:00:04]} 27. Bd2 {[%emt 0:01:47]} Rfe8 {[%emt 0:00:22]} 28.
Qf3 {[%emt 0:01:17]} Rcd8 {[%emt 0:00:23]} 29. Red1 {[%emt 0:02:27]} Bf6 {
[%emt 0:01:46]} 30. Qe2 {[%emt 0:01:16]} Bg7 {[%emt 0:01:06]} 31. Qf3 {[%emt 0:
00:00]} Nf6 {[%emt 0:00:05]} 32. Be3 {[%emt 0:00:22]} Rc8 {[%emt 0:00:04]} 33.
Qe2 {[%emt 0:00:48]} Ng4 {[%emt 0:00:17]} 34. Bc1 {[%emt 0:00:48]} Nh6 {
[%emt 0:00:13]} 35. Be3 {[%emt 0:00:33]} Nf7 {[%emt 0:00:21]} 36. Nxf7 {
[%emt 0:03:31]} Qxf7 {[%emt 0:00:08]} 37. Bg2 {[%emt 0:00:33]} Kh7 {[%emt 0:00:
00]} 38. Bg5 {[%emt 0:00:58]} Bf6 {[%emt 0:00:43]} 39. Bxf6 {[%emt 0:01:00]}
Qxf6 {[%emt 0:00:05]} 40. Ra3 {[%emt 0:00:42]} Rc7 {[%emt 0:00:49]} 41. c4 {
[%emt 0:31:14]} Rce7 {[%emt 0:33:02]} 42. Qc2 {[%emt 0:02:19]} Qe6 {[%emt 0:00:
00]} 43. Rc1 {[%emt 0:01:36]} Rd8 {[%emt 0:00:00]} 44. Qc3 {[%emt 0:00:00]} Rd4
{[%emt 0:00:00]} 45. Qa5 {[%emt 0:00:00]} Qd6 {[%emt 0:00:00]} 46. Qb5 {
[%emt 0:00:00]} Kg7 {[%emt 0:00:00]} 47. Rac3 {[%emt 0:00:00]} Rc7 {[%emt 0:00:
00]} 48. Bf1 {[%emt 0:00:00]} f4 {[%emt 0:00:00]} 49. Re1 {[%emt 0:00:00]} fxg3
{[%emt 0:00:00]} 50. fxg3 {[%emt 0:00:00]} Rg4 {[%emt 0:00:00]} 51. Kg2 {
[%emt 0:00:00]} Rf7 {[%emt 0:00:00]} 52. Qe8 {[%emt 0:00:00]} Re7 {[%emt 0:00:
00]} 53. Qb5 {[%emt 0:00:00]} Qd4 {[%emt 0:00:00]} 54. Re2 {[%emt 0:00:00]} Nc8
{[%emt 0:00:00]} 55. Qc6 {[%emt 0:00:00]} Nd6 {[%emt 0:00:00]} 56. Qd5 {
[%emt 0:00:00]} Nf5 {[%emt 0:00:00]} 57. Qxd4 {[%emt 0:00:00]} cxd4 {[%emt 0:
00:00]} 58. Ra3 {[%emt 0:00:00]} Nxg3 {[%emt 0:00:11]} 59. Rc2 {[%emt 0:00:00]}
Rf7 {[%emt 0:00:24]} 0-1

[Event "44th Chess Olympiad Women 2022"]
[Site "Chennai"]
[Date "2022.08.07"]
[Round "9.13"]
[White "Vishwa Vasnawala"]
[Black "Blokhin, Sofia"]
[Result "1/2-1/2"]
[WhiteElo "2305"]
[BlackElo "1996"]
[Annotator "RC"]
[PlyCount "57"]
[EventDate "2022.??.??"]
[TimeControl "60"]

1. d4 {[%emt 0:00:01]} f5 {[%emt 0:00:06]} 2. g3 {[%emt 0:00:04]} e6 {[%emt 0:
00:00]} 3. c4 {[%emt 0:00:05]} Nf6 {[%emt 0:00:07]} 4. Bg2 {[%emt 0:00:04]} Be7
{[%emt 0:00:12]} 5. Nf3 {[%emt 0:00:18]} O-O {[%emt 0:00:28]} 6. O-O {[%emt 0:
00:00]} d5 {[%emt 0:00:20]} 7. Nbd2 {[%emt 0:00:12]} Nc6 {[%emt 0:02:49]} 8. e3
{[%emt 0:08:36]} b6 {[%emt 0:05:25]} 9. Qa4 {[%emt 0:07:31]} Bb7 {[%emt 0:00:
00]} 10. cxd5 {[%emt 0:09:32]} exd5 {[%emt 0:02:24]} 11. Rd1 {[%emt 0:01:54]}
Qd6 {[%emt 0:06:41]} 12. Ne1 {[%emt 0:03:01]} Ne4 {[%emt 0:09:47]} 13. Nd3 {
[%emt 0:02:25]} a5 {[%emt 0:05:59]} 14. Nf3 {[%emt 0:02:12]} Bf6 {[%emt 0:00:
00]} 15. Bd2 {[%emt 0:03:22]} Ba6 {[%emt 0:02:45]} 16. Be1 {[%emt 0:11:00]} g5
{[%emt 0:11:33]} 17. Rac1 {[%emt 0:12:38]} Bb7 {[%emt 0:02:52]} 18. Qc2 {
[%emt 0:07:30]} Rf7 {[%emt 0:04:22]} 19. a3 {[%emt 0:05:57]} g4 {[%emt 0:03:33]
} 20. Nd2 {[%emt 0:01:11]} h5 {[%emt 0:06:09]} 21. f3 {[%emt 0:01:36]} Nxd2 {
[%emt 0:02:00]} 22. Qxd2 {[%emt 0:01:49]} Re8 {[%emt 0:04:23]} 23. Nf4 {
[%emt 0:01:41]} Nd8 {[%emt 0:01:20]} 24. Nxh5 {[%emt 0:04:31]} Bg5 {[%emt 0:00:
00]} 25. Nf4 {[%emt 0:01:06]} Rh7 {[%emt 0:02:37]} 26. fxg4 {[%emt 0:02:24]}
fxg4 {[%emt 0:00:30]} 27. Qe2 {[%emt 0:02:25]} Qd7 {[%emt 0:01:20]} 28. b4 {
[%emt 0:03:47]} a4 {[%emt 0:01:27]} 29. b5 {[%emt 0:02:56]} 1/2-1/2

[Event "44th Chess Olympiad Women 2022"]
[Site "Chennai"]
[Date "2022.08.07"]
[Round "9.14"]
[White "Fronda, Jan Jodilyn"]
[Black "Gara, Ticia"]
[Result "1-0"]
[WhiteElo "2181"]
[BlackElo "2367"]
[Annotator "RC"]
[PlyCount "127"]
[EventDate "2022.??.??"]
[TimeControl "60"]

1. e4 {[%emt 0:01:34]} c5 {[%emt 0:00:10]} 2. c3 {[%emt 0:00:45]} d5 {[%emt 0:
00:00]} 3. exd5 {[%emt 0:00:10]} Qxd5 {[%emt 0:00:05]} 4. d4 {[%emt 0:00:06]}
Nc6 {[%emt 0:00:23]} 5. Nf3 {[%emt 0:00:57]} Bg4 {[%emt 0:00:20]} 6. dxc5 {
[%emt 0:08:30]} Qxd1+ {[%emt 0:02:55]} 7. Kxd1 {[%emt 0:00:09]} e6 {[%emt 0:00:
00]} 8. b4 {[%emt 0:00:06]} a5 {[%emt 0:00:29]} 9. Bb5 {[%emt 0:08:20]} Nge7 {
[%emt 0:00:08]} 10. a3 {[%emt 0:03:22]} axb4 {[%emt 0:05:40]} 11. cxb4 {
[%emt 0:01:35]} O-O-O+ {[%emt 0:00:09]} 12. Nbd2 {[%emt 0:00:29]} Bxf3+ {
[%emt 0:02:32]} 13. gxf3 {[%emt 0:00:10]} Nd4 {[%emt 0:00:05]} 14. Bc4 {
[%emt 0:12:19]} g6 {[%emt 0:12:53]} 15. Ne4 {[%emt 0:07:31]} Nef5 {[%emt 0:00:
00]} 16. Bg5 {[%emt 0:08:48]} Rd7 {[%emt 0:00:36]} 17. Kc1 {[%emt 0:04:45]} Bg7
{[%emt 0:08:45]} 18. Bf6 {[%emt 0:11:36]} Bxf6 {[%emt 0:07:13]} 19. Nxf6 {
[%emt 0:00:08]} Rc7 {[%emt 0:00:04]} 20. Kb2 {[%emt 0:02:04]} Nxf3 {[%emt 0:00:
00]} 21. Rad1 {[%emt 0:01:44]} h5 {[%emt 0:01:06]} 22. a4 {[%emt 0:05:06]} h4 {
[%emt 0:03:15]} 23. a5 {[%emt 0:03:42]} Ne5 {[%emt 0:06:18]} 24. Be2 {[%emt 0:
00:00]} h3 {[%emt 0:06:20]} 25. a6 {[%emt 0:02:58]} bxa6 {[%emt 0:00:04]} 26.
Bxa6+ {[%emt 0:00:07]} Kb8 {[%emt 0:00:02]} 27. f4 {[%emt 0:05:01]} Nc6 {
[%emt 0:04:56]} 28. Nd7+ {[%emt 0:03:13]} Ka8 {[%emt 0:00:07]} 29. b5 {[%emt 0:
00:00]} Nb4 {[%emt 0:00:44]} 30. b6 {[%emt 0:00:57]} Nxa6 {[%emt 0:00:24]} 31.
bxc7 {[%emt 0:00:09]} Nxc7 {[%emt 0:00:05]} 32. c6 {[%emt 0:00:09]} Ka7 {
[%emt 0:01:04]} 33. Ra1+ {[%emt 0:00:36]} Na6 {[%emt 0:00:03]} 34. Nc5 {
[%emt 0:01:09]} Rb8+ {[%emt 0:00:05]} 35. Kc3 {[%emt 0:00:20]} Rb6 {[%emt 0:00:
00]} 36. c7 {[%emt 0:00:59]} Ne7 {[%emt 0:00:41]} 37. Rhd1 {[%emt 0:01:23]} Rc6
{[%emt 0:02:33]} 38. Rxa6+ {[%emt 0:01:06]} Rxa6 {[%emt 0:00:04]} 39. Nxa6 {
[%emt 0:00:11]} Kxa6 {[%emt 0:00:05]} 40. Rd7 {[%emt 0:00:27]} Nc8 {[%emt 0:00:
00]} 41. Rxf7 {[%emt 0:30:38]} Kb7 {[%emt 0:30:06]} 42. Rg7 {[%emt 0:01:02]}
Nd6 {[%emt 0:00:13]} 43. Rxg6 {[%emt 0:00:23]} Kxc7 {[%emt 0:00:30]} 44. Rxe6 {
[%emt 0:00:11]} Nf5 {[%emt 0:00:31]} 45. Kd3 {[%emt 0:00:56]} Kd7 {[%emt 0:00:
00]} 46. Re5 {[%emt 0:00:15]} Nh6 {[%emt 0:00:50]} 47. Rh5 {[%emt 0:01:02]} Ng4
{[%emt 0:00:04]} 48. Ke2 {[%emt 0:00:08]} Nxh2 {[%emt 0:00:07]} 49. Rg5 {
[%emt 0:00:00]} Ke6 {[%emt 0:00:00]} 50. Kf2 {[%emt 0:00:00]} Kf6 {[%emt 0:00:
00]} 51. Rg3 {[%emt 0:00:00]} Kf5 {[%emt 0:00:00]} 52. Rxh3 {[%emt 0:00:00]}
Ng4+ {[%emt 0:00:00]} 53. Kf3 {[%emt 0:00:00]} Nf6 {[%emt 0:00:00]} 54. Rh1 {
[%emt 0:00:00]} Kg6 {[%emt 0:00:00]} 55. Rg1+ {[%emt 0:00:00]} Kf7 {[%emt 0:00:
00]} 56. f5 {[%emt 0:00:00]} Nd5 {[%emt 0:00:00]} 57. Rd1 {[%emt 0:00:00]} Nf6
{[%emt 0:00:00]} 58. Kf4 {[%emt 0:00:00]} Nh5+ {[%emt 0:00:00]} 59. Ke5 {
[%emt 0:00:00]} Nf6 {[%emt 0:00:24]} 60. Rd4 {[%emt 0:00:00]} Ke7 {[%emt 0:00:
00]} 61. Ra4 {[%emt 0:00:00]} Nd7+ {[%emt 0:00:00]} 62. Kf4 {[%emt 0:00:00]}
Nf6 {[%emt 0:00:00]} 63. Kg5 {[%emt 0:00:00]} Nd5 {[%emt 0:00:00]} 64. Kg6 {
[%emt 0:00:00]} 1-0

[Event "44th Chess Olympiad Women 2022"]
[Site "Chennai"]
[Date "2022.08.07"]
[Round "9.14"]
[White "Hoang, Thanh Trang"]
[Black "Frayna, Janelle Mae"]
[Result "1/2-1/2"]
[WhiteElo "2376"]
[BlackElo "2224"]
[Annotator "RC"]
[PlyCount "108"]
[EventDate "2022.??.??"]
[TimeControl "60"]

1. d4 {[%emt 0:00:12]} g6 {[%emt 0:00:46]} 2. g3 {[%emt 0:01:10]} d5 {[%emt 0:
00:00]} 3. Bg2 {[%emt 0:00:34]} Bg7 {[%emt 0:00:03]} 4. Nf3 {[%emt 0:00:35]}
Nf6 {[%emt 0:00:04]} 5. O-O {[%emt 0:00:30]} O-O {[%emt 0:00:20]} 6. c4 {
[%emt 0:00:26]} c6 {[%emt 0:00:22]} 7. Qb3 {[%emt 0:00:33]} dxc4 {[%emt 0:00:
00]} 8. Qxc4 {[%emt 0:00:31]} Bf5 {[%emt 0:03:04]} 9. Nc3 {[%emt 0:05:49]} Nbd7
{[%emt 0:01:55]} 10. Rd1 {[%emt 0:08:58]} Bc2 {[%emt 0:01:38]} 11. Re1 {
[%emt 0:01:09]} Nb6 {[%emt 0:06:50]} 12. Qc5 {[%emt 0:05:01]} Ne4 {[%emt 0:00:
00]} 13. Nxe4 {[%emt 0:03:38]} Bxe4 {[%emt 0:00:04]} 14. Rd1 {[%emt 0:04:03]}
Qd6 {[%emt 0:02:32]} 15. Qxd6 {[%emt 0:05:44]} exd6 {[%emt 0:03:16]} 16. Bf4 {
[%emt 0:05:44]} Rad8 {[%emt 0:06:20]} 17. Rac1 {[%emt 0:02:37]} Rfe8 {[%emt 0:
00:00]} 18. b3 {[%emt 0:04:20]} h6 {[%emt 0:03:19]} 19. Bd2 {[%emt 0:01:55]} g5
{[%emt 0:01:28]} 20. e3 {[%emt 0:01:48]} Nd5 {[%emt 0:03:10]} 21. h4 {[%emt 0:
00:00]} f6 {[%emt 0:04:23]} 22. Be1 {[%emt 0:02:38]} Kf8 {[%emt 0:03:34]} 23.
g4 {[%emt 0:04:59]} Kg8 {[%emt 0:02:01]} 24. Nd2 {[%emt 0:04:27]} Bxg2 {
[%emt 0:03:57]} 25. Kxg2 {[%emt 0:00:09]} Ne7 {[%emt 0:05:51]} 26. Nf3 {
[%emt 0:01:10]} f5 {[%emt 0:03:50]} 27. gxf5 {[%emt 0:05:25]} g4 {[%emt 0:00:
00]} 28. Nh2 {[%emt 0:00:13]} h5 {[%emt 0:01:31]} 29. e4 {[%emt 0:03:34]} d5 {
[%emt 0:00:05]} 30. Bb4 {[%emt 0:01:04]} dxe4 {[%emt 0:00:32]} 31. Bxe7 {
[%emt 0:00:15]} Rxe7 {[%emt 0:00:06]} 32. Nf1 {[%emt 0:10:14]} Rd5 {[%emt 0:00:
00]} 33. Ng3 {[%emt 0:00:00]} Kf7 {[%emt 0:01:07]} 34. Nxh5 {[%emt 0:00:00]}
Bxd4 {[%emt 0:05:43]} 35. Ng3 {[%emt 0:00:00]} Bf6 {[%emt 0:07:48]} 36. h5 {
[%emt 0:00:00]} Bg5 {[%emt 0:00:07]} 37. Rb1 {[%emt 0:02:25]} Kf6 {[%emt 0:00:
00]} 38. Re1 {[%emt 0:00:27]} Rd4 {[%emt 0:02:13]} 39. Rbd1 {[%emt 0:00:27]}
Rd5 {[%emt 0:04:41]} 40. Rh1 {[%emt 0:03:35]} Bh6 {[%emt 0:01:00]} 41. Rde1 {
[%emt 0:03:20]} e3 {[%emt 0:05:47]} 42. Rhf1 {[%emt 0:08:44]} Rd2 {[%emt 0:00:
00]} 43. Re2 {[%emt 0:00:51]} Bg5 {[%emt 0:06:40]} 44. fxe3 {[%emt 0:08:31]}
Rxe2+ {[%emt 0:00:15]} 45. Nxe2 {[%emt 0:00:10]} Rxe3 {[%emt 0:00:08]} 46. Nd4
{[%emt 0:00:58]} Bh6 {[%emt 0:06:04]} 47. Ne6 {[%emt 0:03:25]} b6 {[%emt 0:00:
00]} 48. Rf2 {[%emt 0:01:36]} Rh3 {[%emt 0:02:09]} 49. Nd8 {[%emt 0:02:17]} c5
{[%emt 0:00:41]} 50. Nc6 {[%emt 0:00:42]} Be3 {[%emt 0:06:17]} 51. Rf1 {
[%emt 0:00:36]} Rxh5 {[%emt 0:00:21]} 52. Nxa7 {[%emt 0:00:17]} Rxf5 {[%emt 0:
00:00]} 53. Rxf5+ {[%emt 0:00:42]} Kxf5 {[%emt 0:00:03]} 54. Nc8 {[%emt 0:00:
00]} c4 {[%emt 0:02:54]} 1/2-1/2